bitfinex-derivatives/quotes_BNBF0:USTF0_20250510
["timestamp","ask_amount","ask_price","bid_price","bid_amount"]
[1746849613937,0.24763769,663.0,661.92,0.30215131]
[1746849614338,0.24763769,662.99,661.92,0.30215131]
[1746849614537,0.24763769,662.98,661.92,0.30215131]
[1746849614837,0.24763769,662.97,661.92,0.30215131]
[1746849615538,0.24763769,662.96,661.92,0.30215131]
[1746849615738,0.24763769,662.95,661.92,0.30215131]
[1746849616038,0.24763769,662.94,661.92,0.30215131]
[1746849616439,0.24763769,663.39,661.92,0.30215131]
[1746849616739,0.24763769,662.93,661.93,0.718]
[1746849616943,0.24763769,663.38,661.93,0.718]
[1746849617239,0.24763769,663.37,661.95,0.30213762]
[1746849617737,0.24763769,663.36,661.95,0.30213762]
[1746849618040,0.24763769,663.35,661.95,0.30213762]
[1746849618340,0.24763769,663.34,661.95,0.30213762]
[1746849618940,0.24763769,663.33,661.95,0.30213762]
[1746849619442,0.24763769,663.32,661.95,0.30213762]
[1746849619743,0.24763769,663.31,661.95,0.30213762]
[1746849619944,0.24763769,663.3,661.95,0.30213762]
[1746849620243,0.24763769,663.29,661.95,0.30213762]
[1746849620747,0.24763769,663.28,661.95,0.30213762]
[1746849622149,0.24763769,663.27,661.95,0.30213762]
[1746849622450,0.24763769,663.26,661.95,0.30213762]
[1746849622748,0.24763769,663.25,661.95,0.30213762]
[1746849623248,0.24763769,663.24,661.95,0.30213762]
[1746849623548,0.24763769,663.23,661.96,0.614]
[1746849623748,1.89476654,663.34,661.96,0.614]
[1746849624047,0.24778643,663.33,661.96,0.614]
[1746849624248,0.24778643,663.32,661.96,0.614]
[1746849624650,0.24778643,663.31,661.96,0.614]
[1746849625050,0.24778643,663.3,661.96,0.614]
[1746849625452,0.24778643,663.29,661.96,0.614]
[1746849625950,0.24778643,663.28,661.96,0.614]
[1746849626251,0.24778643,663.27,661.96,0.614]
[1746849626551,0.24778643,663.26,661.96,0.614]
[1746849626853,0.24778643,663.25,661.96,0.614]
[1746849627151,0.24778643,663.24,661.96,0.614]
[1746849627346,0.24778643,663.23,661.96,0.614]
[1746849627751,0.24778643,663.22,661.96,0.614]
[1746849628150,0.24778643,663.21,661.96,0.614]
[1746849628451,0.24778643,663.2,661.96,0.614]
[1746849628852,0.24778643,663.19,661.96,0.614]
[1746849629146,0.24778643,663.18,661.96,0.614]
[1746849629451,1.89476654,664.73,661.96,0.614]
[1746849629452,0.24778643,663.17,661.96,0.614]
[1746849629852,0.24778643,663.16,661.96,0.614]
[1746849630151,0.24778643,663.15,661.96,0.614]
[1746849630650,0.24778643,663.14,661.96,0.614]
[1746849630952,0.24778643,663.13,661.96,0.614]
[1746849631350,0.24778643,663.12,661.96,0.614]
[1746849631847,0.24778643,663.11,661.96,0.614]
[1746849632050,0.24778643,663.1,661.96,0.614]
[1746849632250,0.24778643,663.09,661.96,0.614]
[1746849632554,0.24778643,663.08,661.96,0.614]
[1746849632851,0.24778643,663.07,661.96,0.614]
[1746849633153,0.24778643,663.06,661.96,0.614]
[1746849633554,0.24778643,663.05,661.96,0.614]
[1746849634354,0.24778643,663.04,661.96,0.614]
[1746849634754,0.24778643,663.03,661.96,0.614]
[1746849635155,0.24778643,663.02,661.96,0.614]
[1746849635556,0.24778643,663.01,661.96,0.614]
[1746849635957,0.24778643,663.0,661.96,0.614]
[1746849636456,0.24778643,662.99,661.96,0.614]
[1746849637054,0.24778643,662.98,661.96,0.614]
[1746849637255,0.24778643,662.97,661.96,0.614]
[1746849637552,0.24778643,662.96,661.96,0.614]
[1746849637851,0.24778643,662.95,661.96,0.614]
[1746849638352,0.24778643,662.94,661.96,0.614]
[1746849638752,1.89476654,663.2,661.96,0.614]
[1746849638753,0.24778643,662.93,661.96,0.614]
[1746849638958,0.24778643,662.92,661.96,0.614]
[1746849639257,0.24778643,662.91,661.96,0.614]
[1746849639656,0.24778643,662.9,661.96,0.614]
[1746849639853,1.89476654,662.85,661.96,0.614]
[1746849640259,0.24778643,662.84,661.96,0.614]
[1746849642354,0.24778643,663.05,661.96,0.614]
[1746849642959,0.24778643,663.04,661.96,0.614]
[1746849643259,0.24778643,663.03,661.96,0.614]
[1746849643559,0.24778643,663.02,661.96,0.614]
[1746849643861,0.24778643,663.01,661.96,0.614]
[1746849644459,0.24778643,663.0,661.96,0.614]
[1746849645261,0.24778643,662.99,661.96,0.614]
[1746849645657,0.24778643,662.98,661.96,0.614]
[1746849646065,0.24778643,663.21,661.96,0.614]
[1746849646264,1.89476654,662.86,661.96,0.614]
[1746849647064,0.24778643,662.85,661.96,0.614]
[1746849650865,0.24778643,662.84,661.96,0.614]
[1746849651166,0.24778643,662.83,661.96,0.614]
[1746849651464,0.24778643,662.82,661.96,0.614]
[1746849651767,1.89476654,664.6,661.96,0.614]
[1746849651768,0.24778643,662.81,661.96,0.614]
[1746849652067,1.89476654,663.27,661.96,0.614]
[1746849652068,0.24778643,662.8,661.96,0.614]
[1746849652465,0.24778643,662.79,661.96,0.614]
[1746849653169,0.24778643,662.78,661.96,0.614]
[1746849653464,0.24778643,662.77,661.96,0.614]
[1746849653967,0.24778643,662.76,661.96,0.614]
[1746849654471,0.24778643,662.75,661.96,0.614]
[1746849654770,0.24778643,662.75,661.72,0.608]
[1746849655068,0.24778643,663.05,661.72,0.608]
[1746849655269,1.89476654,663.06,661.72,0.608]
[1746849655270,0.24778643,662.74,661.72,0.608]
[1746849655666,0.24778643,663.05,661.72,0.608]
[1746849656066,0.24778643,663.05,661.73,0.508]
[1746849656270,0.24778643,663.04,661.73,0.508]
[1746849656569,0.24778643,663.03,661.73,0.508]
[1746849656972,0.24778643,663.02,661.74,0.712]
[1746849657366,0.24778643,663.01,661.74,0.712]
[1746849657771,0.24778643,663.0,661.74,0.712]
[1746849658165,0.24778643,662.99,661.74,0.712]
[1746849658470,0.24778643,662.98,661.74,0.712]
[1746849658870,0.24778643,662.97,661.74,0.712]
[1746849659173,0.24778643,662.96,661.74,0.712]
[1746849659472,0.24778643,662.95,661.74,0.712]
[1746849659873,0.24778643,662.94,661.74,0.712]
[1746849660377,0.24778643,662.93,661.74,0.712]
[1746849660675,0.24778643,662.92,661.74,0.712]
[1746849661175,0.24778643,662.91,661.74,0.712]
[1746849661477,0.24778643,662.9,661.74,0.712]
[1746849661870,0.24778643,662.89,661.74,0.712]
[1746849662276,0.24778643,662.88,661.74,0.712]
[1746849662576,0.24778643,662.87,661.74,0.712]
[1746849662876,0.24778643,662.86,661.74,0.712]
[1746849663378,0.24778643,662.85,661.74,0.712]
[1746849663579,0.24778643,662.84,661.74,0.712]
[1746849663979,0.24778643,662.83,661.74,0.712]
[1746849664280,0.24778643,663.06,661.74,0.712]
[1746849664479,0.24778643,663.05,661.74,0.712]
[1746849664782,0.24778643,663.04,661.74,0.712]
[1746849665079,0.24778643,663.03,661.74,0.712]
[1746849665378,0.24778643,663.02,661.74,0.712]
[1746849666079,0.24778643,663.01,661.74,0.712]
[1746849666379,0.24778643,663.0,661.74,0.712]
[1746849666881,0.24778643,662.99,661.74,0.712]
[1746849667181,0.24778643,662.98,661.74,0.712]
[1746849667582,1.89476654,663.18,661.74,0.712]
[1746849667583,0.24778643,662.97,661.74,0.712]
[1746849667879,0.24778643,662.96,661.74,0.712]
[1746849668183,0.24778643,662.95,661.74,0.712]
[1746849668481,0.24778643,662.94,661.74,0.712]
[1746849668982,0.24778643,662.93,661.74,0.712]
[1746849669687,0.24778643,662.92,661.74,0.712]
[1746849669987,0.24778643,662.91,661.74,0.712]
[1746849670289,0.24778643,663.11,661.75,0.548]
[1746849670588,0.24778643,663.1,661.75,0.548]
[1746849670889,1.89476654,663.12,661.75,0.548]
[1746849671189,0.2468782,663.11,661.75,0.548]
[1746849671489,0.2468782,663.1,661.75,0.548]
[1746849671788,0.2468782,663.09,661.75,0.548]
[1746849672288,0.2468782,663.08,661.75,0.548]
[1746849673189,0.2468782,663.07,661.75,0.548]
[1746849673590,0.2468782,663.06,661.75,0.548]
[1746849674189,0.2468782,663.05,661.75,0.548]
[1746849674591,0.2468782,663.04,661.75,0.548]
[1746849674885,0.2468782,663.4,661.75,0.548]
[1746849675189,0.2468782,663.39,661.75,0.548]
[1746849675485,0.2468782,663.38,661.75,0.548]
[1746849675986,0.2468782,663.37,661.75,0.548]
[1746849676388,0.2468782,663.36,661.75,0.548]
[1746849676686,0.2468782,663.35,661.75,0.548]
[1746849677092,0.2468782,663.34,661.75,0.548]
[1746849677392,0.2468782,663.33,661.75,0.548]
[1746849678193,0.2468782,663.32,661.75,0.548]
[1746849678595,0.2468782,663.31,661.75,0.548]
[1746849678901,0.2468782,663.3,661.75,0.548]
[1746849679092,1.89476654,663.38,661.75,0.548]
[1746849679494,0.24685779,663.37,661.75,0.548]
[1746849679694,1.89476654,663.25,661.75,0.548]
[1746849680194,0.24685779,663.24,661.76,0.609]
[1746849680489,0.24685779,663.23,661.76,0.609]
[1746849680795,0.24685779,663.22,661.76,0.609]
[1746849681394,0.24685779,663.21,661.76,0.609]
[1746849681595,0.24685779,663.2,661.76,0.609]
[1746849682097,0.24685779,663.19,661.76,0.609]
[1746849682497,0.24685779,663.24,661.76,0.609]
[1746849682699,0.24685779,663.24,661.77,0.518]
[1746849682897,0.24685779,663.23,661.77,1.321]
[1746849683197,0.24685779,663.22,661.77,1.321]
[1746849683698,0.24685779,663.21,661.77,1.321]
[1746849684198,0.24685779,663.2,661.77,1.321]
[1746849684594,0.24685779,663.24,661.77,1.321]
[1746849684899,0.24685779,663.23,661.77,1.321]
[1746849685098,0.24685779,663.22,661.77,1.321]
[1746849685300,0.24685779,663.21,661.77,1.321]
[1746849685501,1.89476654,663.35,661.77,1.321]
[1746849685800,0.24713312,663.34,661.77,1.321]
[1746849687400,0.24713312,663.33,661.77,1.321]
[1746849687601,1.89476654,663.3,661.77,1.321]
[1746849688101,0.24713312,663.29,661.77,1.321]
[1746849688397,0.24713312,663.28,661.77,1.321]
[1746849688601,0.24713312,663.27,661.77,1.321]
[1746849688902,0.24713312,663.26,661.77,1.321]
[1746849689199,0.24713312,663.25,661.77,1.321]
[1746849689603,0.24713312,663.24,661.77,1.321]
[1746849690002,0.24713312,663.23,661.77,1.321]
[1746849690404,0.24713312,663.22,661.77,1.321]
[1746849690905,0.24713312,663.57,661.77,1.321]
[1746849691203,0.24713312,663.56,661.77,1.321]
[1746849691604,0.24713312,663.55,661.77,1.321]
[1746849692106,0.24713312,663.54,661.77,1.321]
[1746849692299,0.24713312,663.53,661.77,1.321]
[1746849692704,0.24713312,663.52,661.77,1.321]
[1746849693104,0.24713312,663.51,661.77,1.321]
[1746849693608,0.24713312,663.5,661.77,1.321]
[1746849694106,0.24713312,663.49,661.77,1.321]
[1746849694508,0.24713312,663.48,661.77,1.321]
[1746849694708,1.89476654,663.66,661.77,1.321]
[1746849695006,0.2471152,663.65,661.77,1.321]
[1746849695511,0.2471152,663.64,661.77,1.321]
[1746849696711,1.89476654,663.58,661.77,1.321]
[1746849697108,0.2471152,663.57,661.77,1.321]
[1746849697413,0.2471152,663.56,661.77,1.321]
[1746849697714,0.2471152,663.55,661.77,1.321]
[1746849698012,0.2471152,663.54,661.77,1.321]
[1746849698310,0.2471152,663.53,661.77,1.321]
[1746849698615,0.2471152,663.52,661.77,1.321]
[1746849698914,1.89476654,663.58,661.77,1.321]
[1746849698915,0.2471152,663.51,661.77,1.321]
[1746849699111,0.2471152,663.5,661.77,1.321]
[1746849699315,0.2471152,663.49,661.77,1.321]
[1746849699515,0.2471152,663.48,661.77,1.321]
[1746849699815,0.2471152,663.47,661.77,1.321]
[1746849700016,0.2471152,663.46,661.77,1.321]
[1746849700217,0.2471152,663.45,661.77,1.321]
[1746849700411,0.2471152,663.44,661.77,1.321]
[1746849700615,0.2471152,663.43,661.77,1.321]
[1746849700817,0.2471152,663.42,661.77,0.803]
[1746849701118,0.2471152,663.41,661.77,0.803]
[1746849701312,0.2471152,663.4,661.77,0.803]
[1746849701613,0.2471152,663.39,661.77,0.803]
[1746849702813,0.2471152,663.38,661.77,0.803]
[1746849703016,0.2471152,663.38,661.78,0.681]
[1746849703216,0.2471152,663.37,661.78,0.681]
[1746849703517,0.2471152,663.36,661.78,0.681]
[1746849703818,0.2471152,663.35,661.78,0.681]
[1746849704118,0.2471152,663.34,661.79,0.511]
[1746849704516,0.2471152,663.33,661.79,0.511]
[1746849704719,0.2471152,663.33,661.8,0.49]
[1746849705218,0.2471152,663.32,661.8,0.49]
[1746849705619,0.2471152,663.31,661.8,0.49]
[1746849705915,0.2471152,663.3,661.8,0.49]
[1746849706215,0.2471152,663.29,661.8,0.49]
[1746849706621,0.2471152,663.28,661.8,0.49]
[1746849707119,1.89476654,664.69,661.8,0.49]
[1746849707120,1.89476654,663.25,661.8,0.49]
[1746849707314,0.2471152,663.24,661.8,0.49]
[1746849707620,0.2471152,663.23,661.8,0.49]
[1746849708121,0.2471152,663.22,661.8,0.49]
[1746849708822,0.2471152,663.21,661.8,0.49]
[1746849709120,0.2471152,663.2,661.8,0.49]
[1746849709520,0.2471152,663.19,661.8,0.49]
[1746849709824,1.89476654,663.57,661.8,0.49]
[1746849710424,0.24699611,663.56,661.8,0.49]
[1746849710626,1.89476654,663.54,661.8,0.49]
[1746849710920,0.24699611,663.53,661.8,0.49]
[1746849711121,0.24699611,663.52,661.8,0.49]
[1746849711318,0.24699611,663.51,661.8,0.49]
[1746849711523,0.24699611,663.51,661.81,0.531]
[1746849711724,0.24699611,663.5,661.81,0.531]
[1746849712223,0.24699611,663.49,661.81,0.531]
[1746849712524,0.24699611,663.48,661.81,0.531]
[1746849712726,0.24699611,663.47,661.81,0.531]
[1746849713024,0.24699611,663.46,661.81,0.531]
[1746849713225,0.24699611,663.45,661.81,0.531]
[1746849713420,0.24699611,663.44,661.81,0.531]
[1746849713622,0.24699611,663.43,661.81,0.531]
[1746849713821,0.24699611,663.42,661.81,0.531]
[1746849714023,0.24699611,663.41,661.81,0.531]
[1746849714224,0.24699611,663.4,661.81,0.531]
[1746849714522,0.24699611,663.39,661.81,0.531]
[1746849714721,0.24699611,663.38,661.81,0.531]
[1746849715023,0.24699611,663.37,661.81,0.531]
[1746849715230,0.24699611,663.36,661.81,0.531]
[1746849715426,0.24699611,663.35,661.81,0.531]
[1746849715626,0.24699611,663.34,661.81,0.531]
[1746849715828,0.24699611,663.33,661.81,0.531]
[1746849716027,0.24699611,663.32,661.81,0.531]
[1746849716227,0.24699611,663.31,661.81,0.531]
[1746849716428,0.24699611,663.3,661.81,0.531]
[1746849716725,0.24699611,663.29,661.81,0.531]
[1746849716927,0.24699611,663.28,661.81,0.531]
[1746849717127,0.24699611,663.27,661.81,0.531]
[1746849717424,0.24699611,663.26,661.81,0.531]
[1746849717728,0.24699611,663.25,661.81,0.531]
[1746849718028,0.24699611,663.24,661.81,0.531]
[1746849718229,0.24699611,663.23,661.81,0.531]
[1746849718429,0.24699611,663.22,661.81,0.531]
[1746849718629,0.24699611,663.21,661.81,0.531]
[1746849718828,0.24699611,663.2,661.81,0.531]
[1746849719029,0.24699611,663.19,661.81,0.531]
[1746849719226,0.24699611,663.18,661.81,0.531]
[1746849719523,0.24699611,663.17,661.81,0.531]
[1746849719724,0.24699611,663.16,661.81,0.531]
[1746849719930,0.24699611,663.15,661.81,0.531]
[1746849720129,0.24699611,663.14,661.81,0.531]
[1746849720330,0.24699611,663.13,661.81,0.531]
[1746849720628,0.24699611,663.12,661.81,0.531]
[1746849720825,0.24699611,663.11,661.81,0.531]
[1746849721030,0.24699611,663.1,661.81,0.531]
[1746849721230,0.24699611,663.26,661.81,0.531]
[1746849721430,0.24699611,663.25,661.81,0.531]
[1746849721624,0.24699611,663.24,661.81,0.531]
[1746849721824,0.24699611,663.23,661.81,0.531]
[1746849722025,0.24699611,663.22,661.81,1.192]
[1746849722226,0.24699611,663.21,661.81,1.924]
[1746849722430,0.24699611,663.2,661.81,1.924]
[1746849722733,0.24699611,663.19,661.81,1.924]
[1746849722926,0.24699611,663.25,661.81,1.924]
[1746849723126,0.24699611,663.24,661.81,1.924]
[1746849723329,0.24699611,663.23,661.81,1.924]
[1746849723526,0.24699611,663.22,661.81,1.924]
[1746849723732,0.24699611,663.21,661.81,1.924]
[1746849724128,0.24699611,663.2,661.81,1.924]
[1746849725226,0.24699611,663.19,661.81,1.924]
[1746849725533,0.24699611,663.18,661.81,1.924]
[1746849725730,1.89476654,663.54,661.81,1.924]
[1746849726132,0.24723238,663.53,661.81,1.924]
[1746849726433,0.24723238,663.52,661.81,1.924]
[1746849726831,0.24723238,663.51,661.81,1.924]
[1746849727032,1.89476654,663.54,661.81,1.924]
[1746849727332,0.24727133,663.53,661.81,1.924]
[1746849727731,0.24727133,663.52,661.81,1.924]
[1746849727932,1.89476654,663.46,661.81,1.924]
[1746849728433,0.24727133,663.45,661.81,1.924]
[1746849728735,0.24727133,663.44,661.81,1.924]
[1746849729128,0.24727133,663.43,661.81,1.924]
[1746849729433,0.24727133,663.42,661.81,1.924]
[1746849729727,0.24727133,663.41,661.81,1.924]
[1746849729929,0.24727133,663.4,661.81,1.924]
[1746849730234,0.24727133,663.39,661.81,1.924]
[1746849730428,0.24727133,663.38,661.81,1.924]
[1746849730833,0.24727133,663.37,661.81,1.924]
[1746849731033,0.24727133,663.36,661.81,1.924]
[1746849731333,0.24727133,663.35,661.81,1.924]
[1746849731629,0.24727133,663.34,661.81,1.924]
[1746849731837,1.89476654,663.24,661.81,1.924]
[1746849732236,0.24727133,663.23,661.81,1.924]
[1746849733037,0.24727133,663.22,661.81,1.924]
[1746849733334,0.24727133,663.21,661.81,1.924]
[1746849733638,0.24727133,663.2,661.81,1.924]
[1746849733845,1.89476654,663.0,661.81,1.924]
[1746849734337,0.24727133,662.99,661.81,1.924]
[1746849734638,0.24727133,662.98,661.81,1.924]
[1746849734938,1.89476654,663.0,661.81,1.924]
[1746849735438,0.24729396,662.99,661.81,1.924]
[1746849736137,0.24729396,662.98,661.81,1.924]
[1746849736335,1.89476654,663.0,661.81,1.924]
[1746849736737,0.24729723,662.99,661.81,1.924]
[1746849736938,0.51006169,662.99,661.81,1.924]
[1746849737136,0.24729723,662.99,661.81,1.924]
[1746849737434,0.24729723,662.98,661.81,1.924]
[1746849737838,0.24729723,663.0,661.81,1.924]
[1746849738439,0.26276347,662.99,661.81,1.924]
[1746849738836,0.24729723,662.98,661.81,1.924]
[1746849742441,0.24729723,662.97,661.81,1.924]
[1746849742740,0.24729723,662.96,661.81,1.924]
[1746849743341,0.24729723,662.95,661.81,1.924]
[1746849743540,0.24729723,662.94,661.81,1.924]
[1746849744040,0.24729723,662.93,661.81,1.924]
[1746849744541,0.24729723,663.14,661.81,1.924]
[1746849744742,0.26274958,662.92,661.83,0.3021924]
[1746849744934,0.24729723,663.13,661.83,0.3021924]
[1746849745336,0.26274958,662.91,661.83,0.3021924]
[1746849745537,1.89476654,663.09,661.83,0.3021924]
[1746849745743,0.24729723,662.9,661.83,0.3021924]
[1746849746139,0.24729723,663.08,661.83,0.3021924]
[1746849746344,0.26275554,662.89,661.83,0.3021924]
[1746849746644,0.24729723,663.08,661.83,0.3021924]
[1746849746941,0.24729723,663.07,661.84,0.753]
[1746849747144,0.24729723,663.07,661.86,0.3021787]
[1746849747340,0.24729723,663.06,661.86,0.3021787]
[1746849747545,0.51004979,663.06,661.86,0.3021787]
[1746849747843,0.24729723,663.05,661.87,0.756]
[1746849748043,0.24729723,663.04,661.87,1.477]
[1746849748243,0.24729723,663.03,661.87,1.477]
[1746849748645,0.24729723,663.02,661.87,1.477]
[1746849748949,0.24729723,663.01,661.87,1.477]
[1746849749246,0.24729723,663.0,661.87,1.477]
[1746849749447,0.51003987,663.0,661.87,1.477]
[1746849749646,0.24729723,662.99,661.87,1.477]
[1746849749844,0.26274264,663.0,661.87,1.477]
[1746849750040,0.24731716,662.99,661.89,0.30216501]
[1746849750445,0.24731716,662.98,661.89,0.30216501]
[1746849750843,0.24731716,662.97,661.89,0.30216501]
[1746849751246,0.24731716,662.97,661.9,0.92]
[1746849751446,0.24731716,662.97,661.92,0.30215131]
[1746849751646,0.24731716,662.99,661.92,0.30215131]
[1746849751945,0.24731716,662.98,661.92,0.30215131]
[1746849752348,0.24731716,662.99,661.92,0.30215131]
[1746849752547,0.26274363,662.97,661.92,0.30215131]
[1746849753048,0.24731716,662.96,661.92,0.30215131]
[1746849753348,0.24731716,662.95,661.92,0.30215131]
[1746849753648,0.24731716,662.94,661.92,0.30215131]
[1746849753847,0.24731716,662.93,661.92,0.30215131]
[1746849754247,0.24731716,662.92,661.92,0.30215131]
[1746849754548,0.24731716,662.91,661.92,0.30215131]
[1746849754843,0.24731716,662.9,661.92,0.30215131]
[1746849755143,0.24731716,662.89,661.92,0.30215131]
[1746849755343,0.24731716,662.88,661.92,0.30215131]
[1746849755748,0.24731716,662.87,661.92,0.30215131]
[1746849756149,2.1420837,662.86,661.92,0.30215131]
[1746849756448,0.24731716,662.85,661.92,0.30215131]
[1746849758546,0.26280316,662.84,661.92,0.30215131]
[1746849758952,0.24731716,662.83,661.92,0.30215131]
[1746849759352,0.24731716,662.82,661.92,0.30215131]
[1746849759652,0.24731716,662.81,661.92,0.30215131]
[1746849759952,0.24731716,662.8,661.92,0.30215131]
[1746849760347,0.24731716,662.79,661.92,0.30215131]
[1746849760751,0.24731716,662.78,661.92,0.30215131]
[1746849761452,0.2627972,662.77,661.92,0.30215131]
[1746849761651,0.51011436,662.77,661.92,0.30215131]
[1746849762046,0.24731716,662.76,661.92,0.30215131]
[1746849762351,0.24731716,662.75,661.92,0.30215131]
[1746849762747,0.24731716,662.74,661.92,0.30215131]
[1746849762950,0.24731716,662.73,661.92,0.30215131]
[1746849763253,0.24731716,662.72,661.92,0.30215131]
[1746849763452,0.24731716,662.71,661.92,0.30215131]
[1746849763651,0.24731716,662.7,661.92,0.30215131]
[1746849764656,0.26280812,662.69,661.92,0.30215131]
[1746849765155,0.51012528,662.69,661.92,0.30215131]
[1746849765454,0.24731716,662.68,661.92,0.30215131]
[1746849765757,0.24731716,662.67,661.92,0.30215131]
[1746849766056,0.24731716,662.66,661.92,0.30215131]
[1746849766357,0.24731716,662.65,661.92,0.30215131]
[1746849766762,0.24731716,662.64,661.92,0.30215131]
[1746849767063,0.24731716,662.63,661.92,0.30215131]
[1746849767563,0.26281209,662.62,661.92,0.30215131]
[1746849767757,0.51012925,662.62,661.92,0.30215131]
[1746849768058,0.24731716,662.61,661.92,0.30215131]
[1746849768362,0.24731716,662.6,661.92,0.30215131]
[1746849768766,0.24731716,662.59,661.92,0.30215131]
[1746849769164,0.24731716,662.58,661.92,0.30215131]
[1746849769563,0.24731716,662.57,661.92,0.30215131]
[1746849769861,0.24731716,662.56,661.92,0.30215131]
[1746849770566,0.26281904,662.55,661.92,0.30215131]
[1746849771163,0.26281904,662.55,661.93,0.876]
[1746849771363,0.24731716,662.54,661.94,0.30214218]
[1746849773361,0.24731716,662.53,661.94,0.30214218]
[1746849773668,0.5101233,662.53,661.94,0.30214218]
[1746849773865,0.26280614,662.53,661.94,0.30214218]
[1746849774062,0.24731716,662.52,661.94,0.30214218]
[1746849776468,0.26280911,662.51,661.94,0.30214218]
[1746849777068,0.24731716,662.5,661.94,0.30214218]
[1746849778068,0.24731716,662.5,661.95,0.77]
[1746849778368,0.24731716,662.5,661.96,0.667]
[1746849779364,1.89476654,662.85,661.97,0.30212849]
[1746849779567,0.2628101,662.49,661.97,0.30212849]
[1746849779863,0.24746408,662.84,661.97,0.30212849]
[1746849780065,0.24746408,662.83,661.97,0.30212849]
[1746849780569,0.51027418,662.82,661.97,0.30212849]
[1746849780967,0.24746408,662.81,661.97,0.30212849]
[1746849781270,0.24746408,662.8,661.97,0.30212849]
[1746849781569,0.24746408,662.79,661.97,0.30212849]
[1746849781971,0.24746408,662.78,661.97,0.30212849]
[1746849782367,0.24746408,662.81,661.97,0.30212849]
[1746849782565,0.26278232,662.77,661.97,0.30212849]
[1746849783062,0.24746408,662.76,661.97,0.30212849]
[1746849788576,0.24746408,663.26,661.97,0.30212849]
[1746849788773,1.89476654,663.12,661.97,0.30212849]
[1746849789178,0.24746408,663.11,661.97,0.30212849]
[1746849789378,0.24746408,663.1,661.97,0.30212849]
[1746849789578,0.51025434,663.1,661.97,0.30212849]
[1746849789979,0.51025434,663.1,661.98,0.838]
[1746849790175,0.51025434,663.1,662.0,0.3021148]
[1746849790579,0.24746408,663.09,662.0,0.3021148]
[1746849790879,0.24746408,663.08,662.0,0.3021148]
[1746849791382,1.89476654,663.01,662.0,0.3021148]
[1746849791881,0.24746408,663.0,662.0,0.3021148]
[1746849792182,0.24746408,662.99,662.0,0.3021148]
[1746849792677,0.24746408,662.98,662.0,0.3021148]
[1746849792882,0.24746408,662.97,662.0,0.3021148]
[1746849793183,0.24746408,662.96,662.0,0.3021148]
[1746849793484,0.24746408,662.95,662.0,0.3021148]
[1746849793682,0.24746408,662.94,662.0,0.3021148]
[1746849793883,0.24746408,662.93,662.0,0.3021148]
[1746849794179,0.24746408,663.0,662.0,0.3021148]
[1746849794382,0.24746408,662.99,662.0,0.3021148]
[1746849794584,1.89476654,662.81,662.0,0.3021148]
[1746849794979,0.24746408,662.8,662.0,0.3021148]
[1746849795485,1.89476654,662.81,662.0,0.3021148]
[1746849795783,0.26286767,662.79,662.0,0.3021148]
[1746849797184,0.24739572,662.8,662.0,0.3021148]
[1746849797484,0.24739572,663.3,662.0,0.3021148]
[1746849797687,0.26282201,662.79,662.0,0.3021148]
[1746849797880,0.24739572,663.29,662.0,0.3021148]
[1746849798085,0.24739572,662.78,662.0,0.3021148]
[1746849798488,0.24739572,663.3,662.0,0.3021148]
[1746849798687,0.26282201,662.77,662.0,0.3021148]
[1746849798983,1.89476654,664.2,662.0,0.3021148]
[1746849798984,0.24739572,662.76,662.0,0.3021148]
[1746849799288,0.24739572,662.75,662.0,0.3021148]
[1746849799693,0.51022567,662.74,662.0,0.3021148]
[1746849800189,0.24739572,662.73,662.0,0.3021148]
[1746849800689,0.24739572,662.72,662.0,0.3021148]
[1746849800989,0.24739572,662.71,662.0,0.3021148]
[1746849801386,0.24739572,662.7,662.0,0.3021148]
[1746849801586,0.51022567,662.7,662.0,0.3021148]
[1746849801790,0.24739572,662.69,662.0,0.3021148]
[1746849802290,0.24739572,662.68,662.0,0.3021148]
[1746849802490,0.26282995,662.7,662.0,0.3021148]
[1746849802790,0.24736324,662.69,662.0,0.3021148]